bitfinex/quotes_ETHUSD_20250924
["timestamp","ask_amount","ask_price","bid_price","bid_amount"]
[1758689247420,12.25445164,4154.2,4154.1,1e-08]
[1758689248118,12.90037481,4154.2,4154.1,1e-08]
[1758689248280,12.25445164,4154.2,4154.1,1e-08]
[1758689248487,12.90140654,4154.2,4154.1,1e-08]
[1758689248695,13.2789419,4154.2,4154.1,1e-08]
[1758689248906,12.63243847,4154.2,4154.1,1e-08]
[1758689249688,12.62843847,4154.2,4154.1,1e-08]
[1758689250091,13.27487152,4154.2,4154.1,1e-08]
[1758689250289,12.62843847,4154.2,4154.1,1e-08]
[1758689250489,15.16143847,4154.2,4154.1,1e-08]
[1758689250904,15.80782927,4154.2,4154.1,1e-08]
[1758689251105,11.83543847,4154.2,4154.1,1e-08]
[1758689251305,13.27382927,4154.2,4154.1,1e-08]
[1758689251595,13.27182927,4154.2,4154.1,1e-08]
[1758689251802,3.792,4154.1,4152.9,1e-08]
[1758689251991,2.40836183,4152.2,4152.1,0.02]
[1758689252324,0.51727187,4152.3,4152.1,0.6947]
[1758689252487,2.43240276,4152.2,4152.1,0.02]
[1758689252916,0.02404093,4152.2,4152.1,0.02]
[1758689253122,0.02404093,4152.2,4152.1,0.6947]
[1758689253323,4.27057935,4153.5,4152.1,0.6947]
[1758689253625,2.40795654,4152.9,4152.2,0.6747]
[1758689253835,0.02404093,4152.8,4152.3,0.6747]
[1758689253989,0.02404093,4152.8,4152.1,1e-08]
[1758689253990,14.1258257,4152.4,4152.1,1e-08]
[1758689254190,8.73336183,4152.2,4152.1,1e-08]
[1758689254414,13.77638704,4152.2,4152.1,1e-08]
[1758689254732,18.36138704,4152.2,4152.1,1e-08]
[1758689255086,18.73815218,4152.2,4152.1,1e-08]
[1758689255393,16.20515218,4152.2,4152.1,1e-08]
[1758689255611,9.95715218,4152.2,4152.1,1e-08]
[1758689255823,16.02485218,4152.2,4152.1,1e-08]
[1758689256139,17.06606792,4152.2,4152.1,1e-08]
[1758689256289,16.20515218,4152.2,4152.1,1e-08]
[1758689256497,18.55785218,4152.2,4152.1,1e-08]
[1758689256697,18.55785218,4152.2,4151.1,0.02]
[1758689256698,3.20094199,4151.2,4151.1,0.02]
[1758689256928,10.90817053,4151.2,4151.1,0.02]
[1758689257261,11.1228296,4151.2,4151.1,0.02]
[1758689257841,10.8841296,4151.2,4151.1,0.02]
[1758689258345,2.40943485,4150.4,4150.1,0.02]
[1758689258509,6.20152243,4150.2,4150.1,0.02]
[1758689258705,6.71681676,4150.2,4150.1,0.02]
[1758689258930,6.95551676,4150.2,4150.1,0.02]
[1758689259441,6.95551676,4150.2,4149.1,0.02]
[1758689259442,1.22991674,4150.2,4149.1,0.02]
[1758689259603,0.70269813,4150.1,4149.2,0.2318]
[1758689259804,0.792,4149.8,4149.2,0.6747]
[1758689260035,2.41004506,4149.3,4149.2,0.6747]
[1758689260271,3.792,4149.4,4149.1,0.02]
[1758689260546,6.44080315,4149.2,4149.1,0.02]
[1758689260754,8.40494063,4149.2,4149.1,0.02]
[1758689261848,9.22936192,4149.2,4149.1,0.02]
[1758689262217,9.22936192,4149.2,4148.1,0.02]
[1758689262218,3.0,4149.1,4148.1,1e-08]
[1758689262426,0.64174749,4148.6,4148.1,1e-08]
[1758689262608,0.51438049,4148.5,4148.1,0.44500001]
[1758689262814,0.02404093,4148.5,4148.2,0.6844]
[1758689263008,0.02404093,4148.8,4148.3,0.6844]
[1758689263208,2.41055027,4148.5,4148.2,0.2394]
[1758689263408,0.02404093,4148.4,4148.3,0.6844]
[1758689263714,0.98490181,4148.4,4148.3,0.6844]
[1758689264047,2.43460885,4148.4,4148.3,0.6844]
[1758689264469,0.792,4148.2,4148.1,1e-08]
[1758689264750,10.93247903,4148.2,4148.1,1e-08]
[1758689264950,11.3230381,4148.2,4148.1,1e-08]
[1758689265150,13.04352664,4148.2,4148.1,1e-08]
[1758689265656,9.28943406,4148.2,4148.1,1e-08]
[1758689265825,5.9234381,4148.2,4148.1,1e-08]
[1758689266754,6.7154381,4148.2,4148.1,1e-08]
[1758689266962,6.7154381,4148.2,4146.3,0.445]
[1758689266963,0.792,4147.6,4146.3,0.445]
[1758689267161,0.792,4147.4,4145.8,0.6844]
[1758689267449,0.792,4147.4,4144.4,2.085]
[1758689267450,2.41167249,4146.5,4146.0,0.2394]
[1758689267663,2.41184699,4146.2,4146.0,0.6844]
[1758689267845,0.02404093,4146.2,4145.3,2.085]
[1758689268014,0.02404093,4147.0,4146.0,2.41196177]
[1758689268215,0.02404093,4147.3,4146.2,0.24319618]
[1758689268570,0.02404093,4147.3,4146.3,0.6844]
[1758689268866,3.0,4147.9,4146.3,0.6844]
[1758689268867,0.02404093,4147.6,4146.4,0.7085173]
[1758689269017,0.02404093,4147.6,4146.6,2.41161031]
[1758689269217,0.02404093,4147.6,4146.6,0.02411614]
[1758689269470,0.02404093,4147.6,4146.7,0.6844]
[1758689269650,2.4113332,4147.1,4146.8,0.6844]
[1758689269852,5.92201283,4148.0,4146.9,0.6844]
[1758689269853,0.02404093,4147.0,4146.9,0.6844]
[1758689270052,0.02404093,4147.1,4146.9,0.6844]
[1758689270366,2.43536716,4147.1,4147.0,0.6844]
[1758689270861,0.02404093,4147.1,4147.0,0.6844]
[1758689271218,0.51059668,4147.6,4147.0,0.6844]
[1758689271219,0.02404093,4147.2,4147.1,2.41132357]
[1758689271569,2.7887907,4148.3,4147.1,0.6844]
[1758689271570,0.02404093,4147.5,4147.1,0.6844]
[1758689271772,0.02404093,4147.5,4147.2,0.6844]
[1758689272068,1.30259668,4148.2,4147.2,0.6844]
[1758689272069,5.41074226,4148.1,4147.2,0.6844]
[1758689272239,5.41074226,4148.1,4146.7,0.02411556]
[1758689272240,0.12,4147.7,4147.0,0.12]
[1758689272566,0.001,4147.6,4147.3,0.6844]
[1758689272888,0.001,4147.6,4147.4,0.6844]
[1758689273087,0.001,4147.6,4147.4,0.8044]
[1758689273378,0.001,4147.6,4147.5,0.6844]
[1758689273580,0.001,4147.6,4147.4,0.12]
[1758689273734,0.001,4147.6,4145.2,0.004]
[1758689273735,3.20315891,4147.4,4146.6,0.445]
[1758689273934,0.97261416,4147.3,4146.6,0.445]
[1758689274150,2.41143507,4147.0,4146.7,0.2394]
[1758689274351,0.02404093,4146.9,4146.8,0.6844]
[1758689274736,0.02404093,4147.1,4146.8,0.6844]
[1758689274935,0.02404093,4147.1,4146.2,0.02411846]
[1758689274936,3.02404093,4147.5,4146.9,0.6844]
[1758689275136,0.3776067,4147.5,4147.0,0.6844]
[1758689275368,0.3776067,4147.5,4147.1,0.6844]
[1758689275369,2.41126543,4147.2,4147.1,0.6844]
[1758689275570,2.43530636,4147.2,4147.1,0.6844]
[1758689276087,0.02404093,4147.3,4147.1,0.6844]
[1758689276372,0.5116168,4147.6,4146.3,0.02411788]
[1758689276373,0.001,4147.6,4147.2,0.6844]
[1758689276690,3.20384699,4146.2,4146.1,1e-08]
[1758689276865,7.93860917,4146.2,4146.1,1e-08]
[1758689277170,8.14886824,4146.2,4146.1,1e-08]
[1758689277477,7.91456824,4146.2,4146.1,1e-08]
[1758689277786,2.41161433,4146.6,4146.1,0.44500001]
[1758689278072,0.53490611,4146.5,4146.1,0.44500001]
[1758689278252,2.41179202,4146.3,4146.2,0.445]
[1758689278450,0.02404093,4146.3,4146.2,0.445]
[1758689278684,0.51086518,4146.5,4146.2,0.6844]
[1758689278976,0.02404093,4146.4,4146.3,0.6844]
[1758689279185,2.41163765,4146.6,4146.3,0.6844]
[1758689279384,0.02404093,4146.5,4146.1,1e-08]
[1758689279585,0.5355432,4147.0,4146.4,0.6844]
[1758689279916,0.51150227,4146.9,4146.4,0.6844]
[1758689280047,0.5355432,4146.8,4146.5,0.6844]
[1758689280254,2.41157039,4146.7,4146.6,0.6844]
[1758689280451,0.63854359,4147.4,4146.6,0.6844]
[1758689280676,0.63854359,4147.4,4146.7,0.6844]
[1758689280677,0.51203834,4147.3,4146.7,0.6844]
[1758689280878,0.53607927,4147.2,4146.6,2.086]
[1758689281061,0.02404093,4147.5,4146.8,0.6844]
[1758689281266,0.53678565,4147.4,4146.9,0.6844]
[1758689281453,0.001,4147.6,4147.0,3.11989459]
[1758689281454,0.51274472,4147.3,4147.0,3.11989459]
[1758689281673,0.001,4147.6,4147.1,0.6844]
[1758689281987,0.51290441,4147.5,4147.2,0.02411265]
[1758689282191,0.51353464,4147.4,4147.3,0.6844]
[1758689282848,0.001,4147.6,4147.3,0.6844]
[1758689283047,0.51349459,4147.5,4147.4,0.6844]
[1758689283591,0.51349459,4147.5,4147.4,3.49500041]
[1758689283788,0.02,4147.9,4147.4,1.10796275]
[1758689283986,0.02,4147.9,4147.5,0.6844]
[1758689284285,0.02,4147.9,4147.8,2.53091663]
[1758689284494,0.53490977,4147.9,4147.8,4.375]
[1758689284685,0.53490977,4147.9,4147.8,7.47031663]
[1758689285073,0.53490977,4147.9,4147.8,8.45845122]
[1758689285273,0.02,4147.9,4147.8,8.45845122]
[1758689286783,0.02,4147.9,4147.8,6.04753459]
[1758689287310,0.02,4147.9,4147.8,8.45845122]
[1758689288005,0.02,4147.9,4147.8,9.25045122]
[1758689288208,0.001,4148.0,4147.9,3.2028585]
[1758689288370,0.001,4148.0,4147.9,9.28342848]
[1758689288569,0.001,4148.0,4147.9,9.2593199]
[1758689290600,0.001,4148.0,4147.9,3.6844]
[1758689290812,0.001,4148.0,4147.7,2.086]
[1758689290982,0.001,4148.0,4147.8,3.963]
[1758689291415,2.41181163,4148.0,4147.8,3.963]
[1758689291635,0.2482,4148.0,4147.8,3.963]
[1758689291830,0.51609738,4147.9,4147.8,3.963]
[1758689292337,2.41091663,4147.8,4146.9,2.086]
[1758689292485,2.41138172,4147.0,4146.9,4.25]
[1758689292685,3.1746791,4147.0,4146.9,4.25]
[1758689293216,3.1746791,4147.0,4144.1,0.02]
[1758689293217,0.94459738,4147.0,4144.1,0.02]
[1758689293515,0.85962105,4145.7,4145.1,6.354]
[1758689293718,3.81189723,4145.7,4145.1,6.354]
[1758689294048,0.51609738,4145.7,4145.6,4.7239]
[1758689294203,0.64464619,4146.3,4145.6,4.9714]
[1758689294401,2.41197349,4146.0,4145.6,4.9714]
[1758689294605,0.85962105,4146.6,4145.6,4.9714]
[1758689294606,3.05637668,4146.5,4145.7,0.49302137]
[1758689294927,0.51576749,4146.4,4145.7,0.4689]
[1758689295125,0.51576749,4146.4,4145.6,4.99964]
[1758689295126,0.51576749,4146.3,4145.6,4.255]
[1758689295329,0.51575131,4146.2,4145.7,0.2475]
[1758689295534,0.02404093,4146.8,4145.8,0.7164]
[1758689295689,2.92736431,4146.7,4145.9,2.086]
[1758689295893,0.51575268,4146.6,4145.9,2.086]
[1758689296195,2.41176965,4146.4,4146.0,4.249]
[1758689296505,2.9275542,4146.3,4146.0,6.335]
[1758689296727,2.41180152,4146.3,4146.0,6.335]
[1758689296928,2.41185225,4146.2,4146.0,6.335]
[1758689297169,2.41190516,4146.1,4146.0,6.335]
[1758689297364,3.64908015,4146.1,4146.0,6.335]
[1758689297666,0.51570281,4146.1,4146.0,4.249]
[1758689298163,2.92760797,4146.1,4145.6,0.004]
[1758689298459,0.77884374,4146.0,4145.6,0.004]
[1758689298639,2.41213787,4145.7,4145.6,0.004]
[1758689299414,3.16668894,4145.7,4145.6,0.004]
[1758689299626,3.72696483,4145.7,4145.6,0.004]
[1758689299842,1.31482696,4145.7,4145.6,0.004]
[1758689300155,3.19072987,4145.7,4145.6,0.004]
[1758689300364,0.75455107,4145.7,4145.6,0.004]
[1758689300730,0.51545107,4145.7,4145.6,0.4729]
[1758689301050,0.12,4146.0,4145.6,0.7204]
[1758689301760,2.53196855,4146.0,4145.6,0.004]
[1758689302124,2.77106855,4146.0,4145.6,4.249]
[1758689302715,0.3591,4146.0,4145.6,4.249]
[1758689302964,0.12,4146.0,4145.6,4.249]
[1758689303130,0.12,4146.5,4145.9,2.41202151]
[1758689303332,0.12,4146.5,4146.0,0.02411963]
[1758689303534,0.53972054,4146.9,4146.3,2.53177521]
[1758689303867,0.12,4147.0,4146.4,0.0241173]
[1758689304212,0.33750461,4147.9,4146.5,0.4689]
[1758689304213,0.02404093,4147.7,4146.5,0.4689]
[1758689304459,0.64464619,4147.8,4146.6,4.38711614]
[1758689304460,0.12,4147.3,4146.6,4.38711614]
[1758689304818,0.12,4147.3,4146.6,4.243]
[1758689304819,0.53971491,4147.2,4146.6,4.243]
[1758689305018,0.53971491,4147.2,4145.7,2.087]
[1758689305019,3.0,4146.9,4145.7,2.087]
[1758689305254,3.0,4146.9,4145.6,0.004]
[1758689305255,2.41213787,4145.7,4145.6,0.004]
[1758689305475,2.91860056,4145.7,4145.6,0.004]
[1758689305876,3.67314588,4145.7,4145.6,0.004]
[1758689306392,3.15770056,4145.7,4145.6,0.004]
[1758689307585,0.51544047,4145.8,4145.6,0.004]
[1758689307751,0.77859567,4146.2,4145.6,0.004]
[1758689307945,0.51545474,4146.1,4145.6,0.004]
[1758689308244,0.02404093,4146.0,4145.6,0.004]
[1758689308444,2.43600572,4146.0,4145.6,0.004]
[1758689308671,0.02404093,4146.0,4145.6,0.004]
[1758689308976,2.4120872,4145.8,4145.6,0.004]
[1758689309206,0.02404093,4146.0,4145.6,0.004]
[1758689309377,0.001,4146.1,4145.6,0.004]
[1758689309686,0.02504093,4146.1,4145.6,0.004]
[1758689309986,0.001,4146.1,4145.6,0.004]
[1758689310187,0.001,4146.1,4145.7,0.7164]
[1758689310347,0.001,4146.1,4145.8,0.02412079]
[1758689310543,0.001,4146.1,4145.8,0.74052079]
[1758689310743,0.001,4146.1,4145.9,0.4689]
[1758689311055,2.41290554,4146.1,4145.9,0.4689]
[1758689311462,0.001,4146.1,4145.9,0.4689]
[1758689311848,0.001,4146.1,4145.9,4.7079]
[1758689312049,0.001,4146.1,4145.9,4.239]
[1758689312349,0.001,4146.1,4146.0,0.4689]
[1758689312878,0.001,4146.1,4145.9,4.4865]
[1758689313100,0.001,4146.1,4145.6,0.004]
[1758689313303,2.41213787,4145.7,4145.6,0.004]
[1758689314190,2.65123787,4145.7,4145.6,0.004]
[1758689314593,3.18160502,4145.7,4145.6,0.004]
[1758689314794,0.76946715,4145.7,4145.6,0.004]
[1758689315302,2.41213787,4145.7,4145.6,0.004]
[1758689316107,0.2391,4145.7,4145.6,0.004]
[1758689316308,2.65123787,4145.7,4145.6,0.004]
[1758689317810,0.12,4145.8,4145.6,0.004]
[1758689318173,0.001,4146.1,4145.6,0.4729]
[1758689318494,0.12,4146.0,4145.6,0.004]
[1758689318692,0.12,4146.0,4145.6,0.4729]
[1758689318909,0.14404093,4146.0,4145.6,0.004]
[1758689319094,0.2391,4145.9,4145.6,0.004]
[1758689319406,2.41213787,4145.7,4145.6,0.004]
[1758689319574,2.97504465,4145.7,4145.6,0.004]
[1758689319774,3.21414465,4145.7,4145.6,0.004]
[1758689320807,2.4361788,4145.7,4145.6,0.004]
[1758689321286,2.6752788,4145.7,4145.6,0.004]
[1758689322278,2.53213787,4145.7,4145.6,0.004]
[1758689322479,0.12,4145.7,4145.6,0.004]
[1758689323110,2.5561788,4145.7,4145.6,0.004]
[1758689323313,3.10492727,4145.7,4145.6,0.004]
[1758689323579,0.6927894,4145.7,4145.6,0.004]
[1758689323779,0.14404093,4145.7,4145.6,0.004]
[1758689324011,2.5561788,4145.7,4145.6,0.004]
[1758689324225,2.7855788,4145.7,4145.6,0.004]
[1758689325224,0.12,4145.8,4145.6,0.004]
[1758689325528,0.001,4146.1,4145.6,0.004]
[1758689325529,0.12,4146.0,4145.7,0.7118]
[1758689325996,2.53196542,4146.0,4145.6,0.004]
[1758689326191,2.41203289,4145.9,4145.6,0.004]
[1758689326393,2.4121337,4145.8,4145.6,0.004]
[1758689327518,0.12,4146.0,4145.6,0.004]
[1758689327684,2.53200997,4146.0,4145.7,0.4664]
[1758689328119,0.001,4146.1,4146.0,2.41196333]
[1758689328516,0.001,4146.1,4146.0,3.14788296]
[1758689328954,0.001,4146.6,4146.5,2.41167249]
[1758689329115,0.001,4146.6,4146.5,6.63867249]
[1758689329316,0.001,4146.6,4146.5,7.35047249]
[1758689329558,0.001,4146.6,4146.5,8.45657974]
[1758689330415,0.001,4146.6,4146.5,9.24857974]
[1758689332368,0.001,4146.6,4146.5,8.14247249]
[1758689334061,0.001,4146.6,4146.5,7.35047249]
[1758689336832,0.001,4146.6,4146.5,7.10507249]
[1758689337026,0.001,4146.6,4146.5,9.42947249]
[1758689337422,0.001,4146.6,4146.5,7.34247249]
[1758689337751,0.001,4146.6,4146.5,10.40489566]
[1758689338129,0.001,4146.6,4146.5,10.52489566]
[1758689338535,0.001,4146.6,4146.5,11.31689566]
[1758689339145,0.001,4146.6,4146.5,8.43489566]
[1758689339326,0.001,4146.6,4146.5,10.52089566]
[1758689340121,0.001,4146.6,4146.5,6.8884]
[1758689340349,0.001,4146.6,4146.5,2.206]
[1758689340562,0.001,4146.6,4146.5,0.12]
[1758689340765,0.2304,4146.6,4146.5,0.12]
[1758689340961,0.001,4146.6,4146.5,4.333]
[1758689341270,0.001,4146.6,4146.5,8.12291249]
[1758689341426,0.001,4146.6,4146.5,4.333]
[1758689341627,0.2304,4146.6,4146.5,0.12]
[1758689341935,0.2304,4146.6,4146.5,4.335]
[1758689342760,0.2304,4146.6,4146.5,4.215]
[1758689343261,0.2304,4146.6,4146.5,7.09307249]
[1758689343262,0.001,4146.6,4146.5,7.09307249]
[1758689343462,0.001,4146.6,4146.5,8.61755845]
[1758689343852,0.001,4146.6,4146.5,7.45847249]
[1758689344227,0.001,4146.6,4146.5,4.8014]
[1758689344569,0.001,4146.6,4146.5,6.74667249]
[1758689345065,0.001,4146.6,4146.5,7.45847249]
[1758689345942,0.001,4146.6,4146.5,8.25047249]
[1758689346143,0.001,4146.6,4146.5,9.52529786]
[1758689348377,0.001,4146.6,4146.5,6.74667249]
[1758689348889,0.001,4146.6,4146.5,4.335]
[1758689349102,0.001,4146.6,4146.5,6.74667249]
[1758689349559,0.001,4146.6,4146.5,0.12]
[1758689349760,0.2304,4146.6,4146.5,4.327]
[1758689350008,0.49458428,4146.6,4146.5,4.327]
[1758689350206,3.08849861,4146.6,4146.5,4.207]
[1758689350364,0.67688428,4146.6,4146.5,4.207]
[1758689350569,3.08849861,4146.6,4146.5,4.207]
[1758689350770,0.49458428,4146.6,4146.5,4.207]
[1758689351074,2.64201433,4146.6,4146.5,4.207]
[1758689352007,0.001,4146.6,4146.5,4.205]
[1758689352300,0.2483,4146.6,4146.5,4.205]
[1758689352704,0.001,4146.6,4146.5,4.205]
[1758689352875,0.2483,4146.6,4146.5,4.205]
[1758689353564,0.001,4146.6,4146.5,4.205]
[1758689353773,0.001,4146.6,4146.5,6.61667249]
[1758689354162,0.001,4146.6,4146.5,4.205]
[1758689356393,0.2355,4146.6,4146.0,2.41196064]
[1758689356710,0.2355,4146.6,4146.1,4.199]
[1758689357709,0.001,4146.6,4146.1,4.6543]
[1758689357863,0.001,4146.6,4146.2,2.86713582]
[1758689358202,0.001,4146.6,4146.2,2.41183582]
[1758689359171,2.41167249,4146.5,4145.9,2.086]
[1758689359370,0.001,4146.6,4145.9,2.086]
[1758689359371,2.41196333,4146.0,4145.9,4.202]
[1758689359609,0.24126725,4146.4,4145.7,4.202]
[1758689359902,2.41184122,4146.3,4145.7,4.202]
[1758689360138,2.41191212,4146.1,4146.0,0.12]
[1758689360268,0.2355,4146.6,4145.3,4.49832465]
[1758689360269,2.41199064,4146.0,4145.3,2.086]
[1758689360465,2.64649064,4146.0,4145.7,4.201]
[1758689360891,0.2345,4146.0,4145.8,0.02412079]
[1758689361065,2.41190092,4146.2,4145.9,0.12]
[1758689361283,0.2345,4146.4,4146.0,4.2]
[1758689361464,2.41172293,4146.5,4146.1,0.12]
[1758689361671,0.001,4146.6,4146.1,0.12]
[1758689361875,0.001,4146.6,4146.2,3.2991327]
[1758689362079,0.001,4146.6,4146.5,0.12]
[1758689363816,0.2355,4146.6,4146.3,4.199]
[1758689363979,0.2345,4146.5,4146.3,4.199]
[1758689364380,0.001,4146.6,4146.3,4.199]
[1758689365188,0.001,4146.6,4146.4,0.12]
[1758689365810,0.001,4146.6,4146.4,0.5753]
[1758689366426,0.001,4146.6,4146.4,0.12]
[1758689366787,0.2345,4146.5,4146.4,0.12]
[1758689367430,0.001,4146.6,4146.4,0.12]
[1758689370740,0.001,4146.6,4146.5,3.29797249]
[1758689370889,0.001,4146.6,4146.5,3.53267249]
[1758689371290,0.001,4146.6,4146.5,0.69]
[1758689371537,0.001,4146.6,4146.5,3.10167249]
[1758689374442,0.001,4146.6,4146.5,7.05097249]
[1758689374636,0.001,4146.6,4146.4,0.12]
[1758689374840,0.001,4146.6,4146.5,4.182]
[1758689375350,0.001,4146.6,4146.5,4.181]
[1758689375702,0.2355,4146.6,4146.5,4.181]
[1758689376428,0.2355,4146.6,4146.4,0.12]
[1758689376617,0.001,4146.6,4146.5,4.18]
[1758689377345,0.001,4146.6,4146.4,0.12]
[1758689377532,0.2345,4146.5,4146.4,4.3]
[1758689378130,0.001,4146.6,4146.4,4.3]
[1758689378844,0.2355,4146.6,4146.4,4.3]
[1758689379246,0.50020446,4146.6,4146.4,4.3]
[1758689379452,2.41183583,4146.3,4146.2,4.177]
[1758689379769,2.82863583,4146.3,4146.2,4.177]
[1758689380993,2.82863583,4146.3,4146.1,0.004]
[1758689381286,0.001,4146.6,4146.1,0.004]
[1758689381655,2.41177552,4146.4,4146.1,0.004]
[1758689381986,0.2326,4146.4,4146.1,0.004]
[1758689382164,0.001,4146.6,4146.1,0.004]
[1758689382475,0.001,4146.6,4146.2,0.441]
[1758689382640,0.001,4146.6,4146.3,4.8555]
[1758689383068,0.001,4146.6,4146.3,4.614]
[1758689383377,0.001,4146.6,4146.4,0.6825]
[1758689383677,0.001,4146.6,4146.5,2.41167249]
[1758689383850,0.001,4146.6,4146.5,3.09417249]
[1758689386070,0.001,4146.6,4146.1,0.004]
[1758689386282,0.001,4146.6,4146.2,1.506]
[1758689386584,0.2336,4146.6,4146.2,3.593]
[1758689387495,0.2336,4146.6,4146.1,0.004]
[1758689387496,0.2326,4146.5,4146.3,4.171]
[1758689387669,0.001,4146.6,4146.3,4.171]
[1758689388093,0.001,4146.6,4146.5,2.41167249]
[1758689388519,0.001,4146.6,4146.5,0.6825]
[1758689388810,0.001,4146.6,4146.5,3.09417249]
[1758689388985,0.001,4146.6,4146.5,4.06186506]
[1758689389378,0.001,4146.6,4146.5,4.18186506]
[1758689389577,0.001,4146.6,4146.5,4.20598178]
[1758689389773,0.001,4146.6,4146.5,4.18186506]
[1758689390081,0.001,4146.6,4146.5,4.97386506]
[1758689391528,0.001,4146.6,4146.5,4.18186506]
[1758689391688,0.001,4146.6,4146.5,9.47117249]
[1758689392325,0.001,4146.6,4146.5,3.21417249]
[1758689392522,0.001,4146.6,4146.5,9.47117249]
[1758689395887,0.001,4146.6,4146.5,10.26317249]
[1758689398014,0.001,4146.6,4146.5,9.47117249]
[1758689398210,0.001,4146.6,4146.5,10.70660246]
[1758689398411,0.001,4146.6,4146.5,14.49860246]
[1758689398943,0.001,4146.6,4146.5,14.49760246]
[1758689400554,0.001,4146.6,4146.5,10.70560246]
[1758689401615,0.001,4146.6,4146.5,10.02310246]
[1758689401816,0.001,4146.6,4146.5,4.61767249]
[1758689402017,0.2336,4146.6,4146.5,8.78767249]
[1758689402219,0.2336,4146.6,4146.5,0.12]
[1758689402455,0.2336,4146.6,4146.5,6.376]
[1758689402656,0.001,4146.6,4146.5,8.78767249]
[1758689404055,0.001,4146.6,4146.5,10.63421764]
[1758689404358,0.001,4147.5,4147.4,2.41114915]
[1758689404556,0.001,4147.5,4147.4,9.48326064]
[1758689404776,0.001,4148.0,4147.9,3.2028585]
[1758689404972,0.001,4148.0,4146.9,0.441]
[1758689405118,0.001,4148.0,4147.9,2.4108585]
[1758689405324,0.001,4148.0,4147.9,8.6668585]
[1758689405518,0.001,4148.0,4147.9,9.0564606]
[1758689405865,0.4159,4148.0,4147.8,4.17]
[1758689406018,0.001,4148.0,4147.9,4.17]
[1758689406754,0.2336,4148.0,4147.9,4.17]
[1758689406934,0.2336,4148.0,4147.6,2.41102224]
[1758689407158,0.2326,4147.9,4147.7,4.18]
[1758689407329,0.001,4148.0,4147.7,4.18]
[1758689407659,0.2326,4147.9,4147.7,4.18]
[1758689407957,0.2326,4147.8,4147.7,4.18]
[1758689408156,0.2326,4147.8,4146.8,0.792]
[1758689408341,0.2326,4147.7,4147.2,2.41126249]
[1758689408543,0.2326,4147.7,4146.9,6.10108249]
[1758689408544,0.2326,4147.6,4147.3,4.177]
[1758689408858,0.2326,4147.5,4147.4,4.177]
[1758689409157,0.4149,4147.5,4147.0,2.086]
[1758689409365,0.4149,4147.4,4147.1,4.177]
[1758689409561,0.4149,4147.3,4147.2,4.178]
[1758689409724,0.4149,4147.3,4147.2,4.177]
[1758689409927,0.2326,4147.3,4147.2,4.177]
[1758689410987,2.59327389,4147.8,4147.2,4.177]
[1758689410988,0.2326,4147.6,4147.2,4.177]
[1758689411332,0.2408,4147.5,4147.3,0.02411207]
[1758689411570,0.2408,4147.5,4147.2,4.177]
[1758689411771,0.2408,4147.4,4147.2,4.177]
[1758689412067,0.2408,4147.3,4147.2,4.177]
[1758689412271,0.2408,4147.6,4147.2,4.177]
[1758689412640,2.8341935,4147.5,4147.2,4.177]
[1758689412947,0.2408,4147.4,4147.2,4.177]
[1758689413348,0.2408,4147.3,4147.2,4.177]
[1758689413544,2.41098689,4147.7,4147.2,4.177]
[1758689413757,0.1823,4147.6,4147.2,4.177]
[1758689413972,0.001,4148.0,4147.2,4.177]
[1758689413973,2.41115889,4147.4,4147.2,4.177]
[1758689414174,2.41115889,4147.4,4146.1,0.466]
[1758689414175,0.43274093,4147.3,4146.6,2.086]
[1758689414350,2.41145301,4146.9,4146.7,4.171]
[1758689414550,2.41145301,4146.9,4146.8,0.12]
[1758689414939,2.41149802,4146.8,4146.7,4.171]
[1758689415142,2.63789802,4146.8,4146.7,4.171]
[1758689415445,2.82019802,4146.8,4146.7,4.171]
[1758689415866,3.34335603,4146.8,4146.7,4.171]
[1758689416079,2.41155617,4146.7,4146.6,0.12]
[1758689416276,2.59385617,4146.7,4146.6,1.981]
[1758689416574,2.8442971,4146.7,4146.6,1.981]
[1758689416975,2.9642971,4146.7,4146.6,1.981]
[1758689417160,3.55419241,4146.7,4146.6,1.981]
[1758689417475,2.75795617,4146.7,4146.6,1.981]
[1758689417881,2.94025617,4146.7,4146.6,1.981]
[1758689418380,2.41184699,4146.2,4146.1,0.024]
[1758689418781,2.82054699,4146.2,4146.1,0.024]
[1758689420312,0.2440009,4146.7,4146.1,4.21811905]
[1758689420313,2.41162202,4146.6,4146.1,4.21811905]
[1758689420586,2.41175134,4146.4,4146.1,4.194]
[1758689420747,2.41179099,4146.3,4146.1,4.194]
[1758689420949,2.41179092,4146.3,4146.1,4.194]
[1758689421146,2.41161818,4146.6,4146.1,4.194]
[1758689421147,2.41174252,4146.4,4146.1,4.194]
[1758689421345,2.41161818,4146.6,4146.1,4.194]
[1758689421583,2.41178861,4146.4,4146.1,4.194]
[1758689421785,2.41181976,4146.3,4146.1,4.194]
[1758689422094,0.001,4146.9,4146.2,0.70001846]
[1758689422290,0.001,4148.0,4146.3,7.453]
[1758689422511,0.001,4148.0,4146.6,3.20361433]
[1758689422710,0.001,4148.0,4147.3,2.41120729]
[1758689422855,0.001,4148.0,4147.3,8.66920729]
[1758689423187,0.001,4148.0,4147.3,9.34510729]
[1758689423387,0.001,4148.0,4147.3,9.88519269]
[1758689424504,0.001,4148.0,4147.3,10.36545448]
[1758689424804,0.001,4148.0,4147.3,13.36545448]